Cogmind - Beta 14 @@@ ROGUE MODE // 2024.11.21 @ 15:50:44 Player: canerib Result: Self-destructed Performance ------------- Evolutions (3) 1500 Regions Visited (5) 1000 Robots Destroyed (33) 165 Value Destroyed (1087) 1087 Prototype IDs (1) 20 Alien Tech Used (0) 0 Bonus (0) 0 TOTAL SCORE: 3772 Bonus ------- None Cogmind --------- Core Integrity 496/700 Matter 300/300 Energy 28/100 System Corruption 0% Temperature Cool (9) Movement Core (400) Ox7 Location -7/Factory Parts ------- > --- POWER (1) -------- (None) > --- PROPULSION (4) --- (None) > --- UTILITY (4) ------ Large Storage Unit Improved Sensor Array Signal Interpreter > --- WEAPON (4) ------- Mining Claw > --- INVENTORY (15) --- Light Nuclear Core Aluminum Leg Flight Unit VTOL Module VTOL Module Cooled VTOL Module Sensor Array Improved Melee Analysis Suite Light Armor Plating System Shield Small Laser Small Laser Minigun Grenade Launcher Peak State ------------ > --- POWER ------------ Improved Ion Engine > --- PROPULSION ------- Aerolev Unit Gravmag System VTOL Module VTOL Module > --- UTILITY ---------- Large Storage Unit Improved Sensor Array Signal Interpreter Seismic Detector > --- WEAPON ----------- Mace Mace Mace Mining Claw > --- INVENTORY -------- Improved Ion Engine Flight Unit Sensor Array Light Armor Plating Small Laser Small Laser Minigun Grenade Launcher [Rating: 28] Favorites ----------- Power Light Ion Engine Engine Light Ion Engine Power Core Light Nuclear Core Propulsion Aluminum Leg Leg Aluminum Leg Hover Unit Aerolev Unit Flight Unit VTOL Module Utility Seismic Detector Device Seismic Detector Storage Large Storage Unit Processor Signal Interpreter Weapon Mace Energy Gun Small Laser Ballistic Gun Assault Rifle Launcher Grenade Launcher Impact Weapon Mace Slashing Weapon Mining Claw Build | -11 -10 -10 -9 -8 -7 ------- Run | Yrd Mat Min Mat Mat Fac Slots Evolved 6 | . . . 2 2 2 Power . | . . . . . . Propulsion 2 | . . . 2 . . Utility 2 | . . . . . 2 Weapon 2 | . . . . 2 . Parts Attached 41 | 7 . 4 5 10 15 Power 6 | 1 . 2 . 1 2 Engine 5 | 1 . 1 . 1 2 Core 1 | . . 1 . . . Reactor . | . . . . . . Propulsion 16 | 2 . . 2 3 9 Treads . | . . . . . . Leg 9 | 2 . . 2 . 5 Wheel . | . . . . . . Hover 4 | . . . . 3 1 Flight 3 | . . . . . 3 Utility 7 | 2 . . 2 . 3 Device 3 | 1 . . . . 2 Storage 3 | 1 . . 2 . . Processor 1 | . . . . . 1 Hackware . | . . . . . . Protection . | . . . . . . Artifact . | . . . . . . Weapon 12 | 2 . 2 1 6 1 Energy Gun 2 | . . 1 . 1 . Energy Cannon . | . . . . . . Ballistic Gun 4 | 2 . 1 . 1 . Ballistic Cannon . | . . . . . . Launcher 1 | . . . 1 . . Special Weapon . | . . . . . . Impact Weapon 4 | . . . . 4 . Slashing Weapon 1 | . . . . . 1 Piercing Weapon . | . . . . . . Special Melee Weapon . | . . . . . . Unidentified Prototypes 1 | . . . . 1 . Parts Lost 20 | . . 2 2 6 10 Power 4 | . . 1 . 1 2 Propulsion 10 | . . . 2 4 4 Utility 1 | . . . . . 1 Weapon 5 | . . 1 . 1 3 Highest Loss Streak 8 | . . 2 2 3 8 To Critical Strikes . | . . . . . . Average Slot Usage (%) 93 | . 100 94 94 82 97 Engine 7 | . 14 7 11 4 6 Leg 23 | . 28 28 38 11 20 Hover 4 | . . . . 11 4 Flight 1 | . . . . . 4 Device 12 | . 14 14 11 9 14 Storage 9 | . 14 14 11 9 7 Processor 2 | . . . . . 6 Energy Gun 1 | . . 5 8 . . Ballistic Gun 7 | . 28 22 11 . . Impact Weapon 16 | . . . . 35 22 Slashing Weapon 3 | . . . . . 7 Peak Build Rating 28 | 7 8 10 12 20 28 Average Rating 17 | 4 7 8 11 17 25 On Entrance 8 | . 7 8 10 11 14 Naked Turns . | . . . . . . Heaviest Build 37 | 13 13 15 30 32 37 Greatest Support 60 | 20 20 20 40 22 60 Greatest Overweight (x) 9 | . . . 1 9 4 Average Overweight (x) . | . . . . 1 . Largest Inventory Capacity 15 | 8 8 8 15 15 15 Average Capacity 12 | 7 8 8 11 15 15 Most Carried 15 | 5 8 8 13 15 14 Average Carried 9 | 2 5 7 9 13 11 Final Capacity 15 | 8 8 8 15 15 15 Final Carried 14 | 3 8 7 13 14 14 Class Distribution -------------------- 57% | Scavenger-Mutant 42% | Mutant Dominant Class ---------------- Mutant | -10/Materials Mutant | -10/Mines Scavenger-Mutant | -9/Materials Mutant | -8/Materials Scavenger-Mutant | -7/Factory Resources | -11 -10 -10 -9 -8 -7 ----------- Run | Yrd Mat Min Mat Mat Fac Matter Collected 902 | 290 104 133 130 100 145 Remotely . | . . . . . . Salvage Created 1200 | 88 118 133 195 185 481 Parts 69 | 8 13 8 15 9 16 Haulers Intercepted . | . . . . . . Recyclers Shooed 1 | 1 . . . . . Parts Field Recycled . | . . . . . . Retrieved Matter . | . . . . . . Parts Self-Destructed . | . . . . . . Prevented . | . . . . . . Kills | -11 -10 -10 -9 -8 -7 ------- Run | Yrd Mat Min Mat Mat Fac Combat Hostiles Destroyed 28 | . 5 5 5 2 11 Melee 7 | . . . . 1 6 Guns 12 | . 5 5 2 . . AOE 3 | . . . 3 . . Classes Destroyed 8 | 2 2 . 1 1 2 Tunneler 1 | 1 . . . . . Recycler 1 | 1 . . . . . Watcher 3 | . . . . 3 . Swarmer 9 | . 3 3 1 . 2 Grunt 12 | . 2 2 . 1 7 Sentry 5 | . . . 4 1 . Hunter 1 | . . . . . 1 Programmer 1 | . . . . . 1 Best Kill Streak 3 | 2 2 3 3 2 3 Combat Bots Only 3 | . 2 3 3 1 3 Max Kills in Single Turn 2 | 1 1 1 2 1 1 Gunslinging . | . . . . . . Exploded 2 | . . . 2 . . Melee 1 | . . . . 1 1 Uniques/NPCs Destroyed . | . . . . . . Combat | -11 -10 -10 -9 -8 -7 -------- Run | Yrd Mat Min Mat Mat Fac Hostile Shots Fired 268 | . 21 41 52 54 100 Missed 76 | . 2 8 24 16 26 Damage Taken 2861 | . 182 374 307 710 1288 Core 525 | . 58 67 62 134 204 Absorbed by Shields . | . . . . . . Regen/Repaired (Parts) 28 | . . . . 28 . Core Remaining (%) 77 | 100 . 50 84 75 . Volleys Fired 52 | 5 19 19 9 . . Largest 2 | 2 2 2 2 . . Hottest 65 | 40 40 65 65 . . Shots Fired 103 | 10 38 37 18 . . Gun 100 | 10 38 37 15 . . Cannon . | . . . . . . Launcher 3 | . . . 3 . . Special . | . . . . . . Kinetic 87 | 10 38 30 9 . . Thermal 13 | . . 7 6 . . Explosive 3 | . . . 3 . . Electromagnetic . | . . . . . . Robot Hit Streak 6 | 3 4 5 6 . . Robot Miss Streak 7 | 1 4 7 2 . . Penetration Max . | . . . . . . Secondary Targets 1 | . . 1 . . . Max Gunslinging Chain 1 | . . 1 . . . Shots Hit Robots 102 | 7 17 19 10 11 38 Core Hits 39 | 3 6 8 9 2 11 Critical Kills . | . . . . . . Critical Parts Destroyed 8 | . . . . 2 6 Critical Strikes 8 | . . . . 2 6 Smash 8 | . . . . 2 6 Melee Attacks 87 | . . . . 17 70 Impact 46 | . . . . 17 29 Slashing 41 | . . . . . 41 Piercing . | . . . . . . Sneak Attacks . | . . . . . . Combat Hostiles . | . . . . . . Follow-up Attacks 26 | . . . . 4 22 Damage Inflicted 2020 | 84 217 271 195 293 960 Guns 684 | 84 217 271 112 . . Cannons . | . . . . . . Explosions 83 | . . . 83 . . Melee 1253 | . . . . 293 960 Ramming . | . . . . . . Kinetic 620 | 84 217 239 80 . . Thermal 64 | . . 32 32 . . Explosive 83 | . . . 83 . . Electromagnetic . | . . . . . . Impact 784 | . . . . 293 491 Slashing 469 | . . . . . 469 Piercing . | . . . . . . Highest Corruption 3 | . . . . 3 . Average Corruption 2 | . . . . 2 . Corruption Purged . | . . . . . . Corruption Blocked . | . . . . . . Overload Shots . | . . . . . . Overflow Damage 294 | . . . 15 60 219 Projectiles . | . . . . . . Explosions 15 | . . . 15 . . Melee 279 | . . . . 60 219 Knockbacks 3 | . . . . . 3 Impact 3 | . . . . . 3 Kinetic . | . . . . . . Secondary . | . . . . . . Self-Inflicted Damage . | . . . . . . Shots . | . . . . . . Rammed . | . . . . . . Targets Rammed . | . . . . . . Kicked . | . . . . . . Crushed . | . . . . . . Highest Temperature 28 | . . 28 27 3 . Average Temperature 10 | . . 9 12 2 . Received Heat Transfer 963 | . 54 162 72 243 432 Siege Activations . | . . . . . . Robots Corrupted 8 | . . . . 3 5 Combat Hostiles 6 | . . . . 1 5 Parts Fried 11 | . . . . 6 5 Impact Corruptions 13 | . . . . 3 10 Robots Melted . | . . . . . . Combat Hostiles . | . . . . . . Parts Melted 1 | . . . 1 . . Heat Transferred 150 | . . 75 75 . . Parts Sabotaged . | . . . . . . Parts Stolen . | . . . . . . Parts Stripped . | . . . . . . Power Chain Reactions . | . . . . . . Alert | -11 -10 -10 -9 -8 -7 ------- Run | Yrd Mat Min Mat Mat Fac Peak Influence 313 | 10 157 191 313 232 144 Initial 131 | . 6 61 74 131 30 Average 95 | 4 59 96 174 160 58 Maximum Alert Level 1 | . . . 1 1 . Low Security (%) 93 | 100 100 100 78 78 100 Level 1 6 | . . . 21 21 . Level 2 . | . . . . . . Level 3 . | . . . . . . Level 4 . | . . . . . . Level 5 . | . . . . . . High Security . | . . . . . . Max Security . | . . . . . . Squads Dispatched 7 | . 2 1 . 2 2 Investigation 3 | . . 1 . 1 1 Extermination 1 | . . . . . 1 Reinforcement 3 | . 2 . . 1 . Assault . | . . . . . . Garrison . | . . . . . . Intercept . | . . . . . . Searches Triggered . | . . . . . . Construction Impeded . | . . . . . . Haulers Reinforced . | . . . . . . Active Scanning Responses . | . . . . . . Cargo Convoy Interrupts . | . . . . . . Stealth | -11 -10 -10 -9 -8 -7 --------- Run | Yrd Mat Min Mat Mat Fac Distress Signals 1 | . . . 1 . . Communications Jammed . | . . . . . . Distress Signals . | . . . . . . Times Spotted 57 | . 9 5 12 14 17 Peak Tracking Total 8 | . 6 3 6 8 5 Tactical Retreats 2 | . . 1 . . 1 Traps | -11 -10 -10 -9 -8 -7 ------- Run | Yrd Mat Min Mat Mat Fac Traps Triggered 3 | . . . . 2 1 Indirectly . | . . . . . . Trap Hack Attempts . | . . . . . . Triggered . | . . . . . . Disarmed . | . . . . . . Reprogrammed . | . . . . . . Reused . | . . . . . . Traps Extracted . | . . . . . . Installed . | . . . . . . Triggered . | . . . . . . Machines | -11 -10 -10 -9 -8 -7 ---------- Run | Yrd Mat Min Mat Mat Fac Machines Disabled 1 | . . . 1 . . Max in Single Turn 1 | . . . 1 . . Garrison Access 1 | . . . . . 1 Machines Repaired . | . . . . . . Machines Dismantled . | . . . . . . Machines Sabotaged . | . . . . . . Overloaded Fab Kills . | . . . . . . Hacking | -11 -10 -10 -9 -8 -7 --------- Run | Yrd Mat Min Mat Mat Fac Machines Accessed 10 | . 1 1 2 2 4 Terminals 6 | . 1 . 2 1 2 Fabricators . | . . . . . . Repair Stations 1 | . . . . 1 . Recycling Units . | . . . . . . Scanalyzers 1 | . . . . . 1 Garrison Access 1 | . . . . . 1 Total Hacks 33 | . 2 1 11 6 13 Successful 12 | . . 1 2 4 5 Failed 21 | . 2 . 9 2 8 Catastrophic 3 | . . . 2 1 . Database Lockouts . | . . . . . . Manual 23 | . 2 . 11 3 7 Terminals 25 | . 2 . 11 4 8 Fabricators . | . . . . . . Repair Stations 2 | . . . . 2 . Recycling Units . | . . . . . . Scanalyzers 2 | . . . . . 2 Garrison Access 3 | . . . . . 3 Terminal Hacks 5 | . . 1 . 2 2 Open Door 1 | . . 1 . . . Alert Level 2 | . . . . 1 1 Unreport Threat 2 | . . . . 1 1 Fabricator Hacks . | . . . . . . Repair Station Hacks 2 | . . . . 2 . Scan Component 1 | . . . . 1 . Repair 1 | . . . . 1 . Recycling Unit Hacks . | . . . . . . Scanalyzer . | . . . . . . Garrison Access Hacks 1 | . . . . . 1 Seal Access 1 | . . . . . 1 Unauthorized Hacks 4 | . . . 2 . 2 Terminals 4 | . . . 2 . 2 Botnet 4 | . . . 2 . 2 Fabricators . | . . . . . . Repair Stations . | . . . . . . Recycling Units . | . . . . . . Scanalyzers . | . . . . . . Garrison Access . | . . . . . . Data Cores Recovered . | . . . . . . Used . | . . . . . . Hacking Detections 9 | . 1 . 2 2 4 Full Trace Events 3 | . . . 1 1 1 Feedback Events . | . . . . . . Feedback Blocked . | . . . . . . Robot Schematics Acquired . | . . . . . . Robots Built . | . . . . . . Authchips . | . . . . . . Time . | . . . . . . Total Robot Build Rating . | . . . . . . Part Schematics Acquired . | . . . . . . Parts Built . | . . . . . . Authchips . | . . . . . . Time . | . . . . . . Total Part Build Rating . | . . . . . . Parts Repaired 1 | . . . . 1 . Time 26 | . . . . 26 . Parts Recycled . | . . . . . . Recycled Matter . | . . . . . . Retrieved Matter . | . . . . . . Retrieved Components . | . . . . . . Parts Scanalyzed . | . . . . . . Part Schematics Acquired . | . . . . . . Parts Damaged . | . . . . . . Bothacking | -11 -10 -10 -9 -8 -7 ------------ Run | Yrd Mat Min Mat Mat Fac Used RIF Installer . | . . . . . . Robots Hacked . | . . . . . . Non-combat . | . . . . . . Combat . | . . . . . . Robot Hacks Applied . | . . . . . . Relay Couplers Released . | . . . . . . Fabnet Peak Effective % . | . . . . . . Robots Rewired . | . . . . . . Allies Hacked . | . . . . . . Hacks Repelled . | . . . . . . Allies | -11 -10 -10 -9 -8 -7 -------- Run | Yrd Mat Min Mat Mat Fac Total Allies . | . . . . . . Largest Group . | . . . . . . Highest-Rated Group . | . . . . . . Highest-Rated Ally . | . . . . . . Total Orders . | . . . . . . Ally Attacks . | . . . . . . Total Damage . | . . . . . . Kills . | . . . . . . Allies Corrupted . | . . . . . . Allies Melted . | . . . . . . Intel | -11 -10 -10 -9 -8 -7 ------- Run | Yrd Mat Min Mat Mat Fac Robot Analysis Total . | . . . . . . Derelict Logs Recovered . | . . . . . . Drone Launches . | . . . . . . Drone Recoveries . | . . . . . . Exploration | -11 -10 -10 -9 -8 -7 ------------- Run | Yrd Mat Min Mat Mat Fac Turns Passed 1988 | 80 192 246 266 373 831 Spaces Moved 987 | 47 103 150 167 152 368 Core 13 | 11 . . . 2 . Treads . | . . . . . . Legs 846 | 36 103 150 167 87 303 Wheels . | . . . . . . Hover 128 | . . . . 63 65 Flight . | . . . . . . Fastest Speed 50 | 50 120 120 120 108 125 Average Speed 136 | 103 120 120 130 164 142 Slowest Speed 500 | 120 120 120 190 500 290 Overloaded Moves . | . . . . . . Propulsion Burnouts . | . . . . . . Robots Hopped . | . . . . . . Cave-ins Triggered . | . . . . . . Exploration Rate (%) 19 | 4 21 26 31 26 10 Regions Visited 5 Branch Regions 1 Pre-discovered Areas . | . . . . . . Known Exits Taken . | . . . . . . Unknown Exits Taken 5 | 1 1 1 1 1 . Scrap Searched . | . . . . . . Spaces Dug . | . . . . . . Terrain Destroyed 24 | . . . 24 . . Melee . | . . . . . . Projectile . | . . . . . . AOE 24 | . . . 24 . . Terrain Rammed . | . . . . . . Walls Destroyed . | . . . . . . Machines Disabled . | . . . . . . Actions | -11 -10 -10 -9 -8 -7 --------- Run | Yrd Mat Min Mat Mat Fac Total 1424 | 68 138 182 200 257 579 Wait 221 | . 6 1 . 72 142 Move 982 | 46 102 149 166 151 368 Hop . | . . . . . . Pick Up 55 | 10 8 5 14 8 10 Fast Attach . | . . . . . . Attach 31 | 7 . 2 2 10 10 Detach 5 | . . . . 4 1 Swap 10 | . . 2 3 . 5 Drop 16 | . 3 4 6 1 2 Fire 52 | 5 19 19 9 . . Melee 52 | . . . . 11 41 Ram . | . . . . . . Kick . | . . . . . . Crush . | . . . . . . Escape Stasis . | . . . . . . Rewire . | . . . . . . Trap . | . . . . . . Miscellaneous . | . . . . . . Route ------- -11/Scrapyard -10/Materials -10/Mines -9/Materials -8/Materials -7/Factory History --------- Turn | Location | Event 6 | -11/Scrapyard | Discovered new exit (range 14) 81 | -11/Scrapyard | Entered Materials 239 | -10/Materials | Discovered new exit (range 9) 273 | -10/Materials | Entered Mines 275 | -10/Mines | Met a Derelict bent on vengeance 275 | -10/Mines | Discovered new exit (range 6) 313 | -10/Mines | Build established: Mutant 348 | -10/Mines | Met a Derelict shopkeep closing up shop 519 | -10/Mines | Entered Materials 519 | -9/Materials | Evolved 2 slots: Propulsion x2 768 | -9/Materials | Discovered new exit (range 9) 785 | -9/Materials | Entered another Materials area 785 | -8/Materials | Evolved 2 slots: Weapon x2 814 | -8/Materials | Build established: Scavenger-Mutant 872 | -8/Materials | Repaired Lgt. Ion Engine 1062 | -8/Materials | Lost 3 parts (1p2n) 1144 | -8/Materials | Discovered new exit (range 9) 1158 | -8/Materials | Entered Factory 1158 | -7/Factory | Evolved 2 slots: Utility x2 1989 | -7/Factory | Self-destructed Last Messages --------------- 01970_ K-01 Serf collects debris. 01972_ K-01 Serf cleans the Subcomponent Replicator. 01975_ Mace destroyed. 01976_ R-06 Scavenger destroyed. 01976_ K-01 Serf collects debris. 01977_ R-06 Scavenger collects Aluminum Leg. 01977_ Imp. Titanium Leg severed. 01977_ K-01 Serf collects debris. 01981_ Imp. Titanium Leg destroyed. 01981_ K-01 Serf collects debris. 01982_ Aluminum Leg destroyed. 01982_ Mace destroyed. 01982_ K-01 Serf cleans the Subcomponent Replicator. 01983_ Critical hit (Burn: +37). 01984_ Seismic Detector destroyed. 01985_ K-01 Serf collects debris. 01986_ R-06 Scavenger collects Lgt. Nuclear Core. 01987_ Critical hit (Burn: +37). 01987_ K-01 Serf cleans the Subcomponent Replicator. 01988_ K-01 Serf collects debris. Map ----- +----------------------------------------------------+ | + """ #??# "" ## # #???????? | | # """ #??# " % ## # #???????? | | + #??# "F %## #[ #???????? | | ##################### "" % ## %/ #???????? | | ##########?# # ## # #???????? | | ! ### ""G"" # ! ## # #???????? | | + + " " # ## ########???????? | | ### # ## #???????? | | % #?# [ # """ ## #???????? | | [ #?# """ # """ + #???????? | | #?# """" # """ ## +???????? | | !#?# """"" # ## #???????? | | #?# # x ## #???????? | | ################+######+##### x #???????? | | ! ??????? | | ! ??????? | | """" % """ """ ""??????? | | """" """"" """"" """???????? | | """" r""""" """"" "?????????? | | ###+#### *!k ??????? | | " # ??# k """ """???????????? | | " / # """??+ k """"" """"????????????? | | " #?"""??# """"" """"" "???????? | | !!! #?"""??+ ???????? | | !!! #??????## l ???????? | | !!! #???????# g @ uk ???????? | | ##+#######+###???????# ###g##############????????? | | # #???????# ??#u#?????????????????????? | | # """"" #???????# ??#x#?????????????????????? | | # """"" #???????# ??#/#?????????????????????? | | # """ #???????# ?? ?????????????????????? | | # #???????# ?? x ?????????????????????? | | # """"" #???????# ?? =?????????????????????? | | # """"" #??????????? ?????????????????????? | | # """ #????????x??"""?????????????????????? | | # #????????x??"R ?????????????????????? | | # #???????????"""?????????????????????? | | # = #?????????????"?????????????????????? | | # #???????????????????????????????????? | | ##############??????????X????????????????????????? | | #????????????????????????????????????????????????? | | #????????????????????????????????????????????????? | | #????????????????????????????????????????????????? | | #????????????????????????????????????????????????? | | ?????????????????????????????????????????????????? | | ?????????????????????????????????????????????????? | | ?????????????????????????????????????????????????? | | ?????????????????????????????????????????????????? | | ?????????????????????????????????????????????????? | | ?????????????????????????????????????????????????? | +----------------------------------------------------+ Best States ------------- Heat Dissipation 34 Energy Generation 14 Energy Capacity 265 Matter Stores 300 Matter Capacity 300 Sight Range 16 Robot Scan Range 15 Terrain Scan Density 10 Evasion (%) 55 Item Schematics ----------------- None Robot Schematics ------------------ None Fabricated ------------ Nothing Alien Tech Used ----------------- None Achievements -------------- None Challenges ------------ None Game ------ Seed ServoPointyWarhead Manual? 0 Play Time 00:25:03 Cumulative 50.0 hours Start 2024.11.21 @ 15:31:50 End 2024.11.21 @ 15:50:44 Sessions 1 Manual Loads 0 Difficulty Rogue Special Mode None Game No. 67 Rogue 67 Adventurer 0 Explorer 0 Win Type - Total 1 Types 1/0/0/0/0/0/0/0/0 Lore% 24 Gallery% 39 Achievement% 35 Wizard Run 0 Options --------- Layout 1 ASCII 1 Keyboard 0 Movement Numpad Keybinds 0 Fullscreen 1 Font 48/Smallcaps Map View 76x35 Zoom Use 0% Tactical HUD 1 Map Filters NONE Filters NONE Steam 1 RUN: 0b366512-611b-4eb3-a5c4-bbfe290a7b05